[Event "24th Hoogeschool Zeeland 2022"]
[Site "Vlissingen"]
[Date "2022.08.09"]
[Round "5.13"]
[White "Seul, Georg"]
[Black "Kools, Thomas"]
[Result "1/2-1/2"]
[ECO "B43"]
[WhiteElo "2367"]
[BlackElo "2135"]
[Annotator "TA"]
[PlyCount "126"]
[EventDate "2022.08.05"]
[EventType "swiss"]
[EventCountry "NED"]
[SourceTitle "playchess.com"]
[Source "ChessBase"]
[SourceQuality "1"]
[TimeControl "40/5400+30:1800+30"]

{[%evp 17,126,0,0,16,24,35,36,38,39,39,29,45,39,37,41,22,41,43,46,30,35,0,32,20,27,31,36,32,29,17,8,10,21,6,57,48,53,22,19,23,41,0,113,98,110,106,109,95,189,187,275,266,275,265,254,211,220,224,416,405,381,382,363,330,337,333,328,325,525,525,510,505,510,405,584,588,589,504,664,652,593,590,585,461,549,543,680,635,690,155,147,135,262,262,262,257,262,262,262,132,132,14,14,0,0,0,0,0,0,0,0]} 1. e4 {[%emt 0:00:03]} c5 {[%emt 0:00:08]} 2. Nf3 {[%emt 0:00:12]} e6 {[%emt 0:00:09]} 3. Nc3 {[%emt 0:00:21]} a6 {[%emt 0:00:28]} 4. g3 {[%emt 0:00:12]} b5 {[%emt 0:00:34]} 5. Bg2 {[%emt 0:00:09]} Bb7 {[%emt 0:00:11]} 6. d4 {[%emt 0:00:16]} cxd4 {[%emt 0:00:32]} 7. Nxd4 {[%emt 0:00:07]} Nf6 {[%emt 0:01:38]} 8. a3 {[%emt 0:00:37]} Qc7 {[%emt 0:05:07]} 9. O-O {[%emt 0:00:17]} d6 {[%emt 0:03:20]} 10. Re1 {[%emt 0:00:07][%cal Oc3d5] Black should prevent Nd5! B43: Sicilian: Kan Variation: 5 Nc3.} Be7 {[%emt 0:03:46]} 11. a4 {[%emt 0:00:46]} bxa4 {[%emt 0:13:07]} 12. Rxa4 {[%emt 0:00:39] Rb4 is the strong threat. White is slightly better.} Nbd7 {[%emt 0:00:40][%cal Bb8d7,Bd7e5,Be5c6,Bc6b4][%mdl 32]} 13. Nb3 {[%emt 0:01:44]} Rb8 {[%emt 0:04:30] [#]} 14. Qe2 $146 {[%emt 0:14:15]} ({Predecessor:} 14. Bf1 Nb6 15. Ra1 Ra8 16. Na5 Bc8 17. Be3 O-O 18. h3 Rd8 19. Qe2 Rb8 20. Bg2 {½-½ (65) Chebotarev,O (2430)-Iljin,A (2472) Samara 2004}) 14... O-O {[%emt 0:05:41]} 15. Rc4 {[%emt 0:09:00]} Qd8 {[%emt 0:02:45]} 16. Be3 {[%emt 0:10:37]} Re8 {[%emt 0:09:28]} 17. Rd1 {[%emt 0:19:23]} Ne5 {[%emt 0:07:27]} 18. Ra4 {[%emt 0:06:46]} (18. Rb4 {with more complications.} d5 19. Nc5 Bc6 20. Rxb8 Qxb8 21. exd5 exd5 22. Nxd5 Nxd5 23. Bxd5 Bb5 24. c4) 18... Qc7 {[%emt 0:04:47]} 19. h3 {[%emt 0:12:40]} (19. f4 {is more complex.} Neg4 20. Ba7 Rbc8 21. h3) 19... Bf8 {[%emt 0:06:27][%cal Od6d5]} 20. f4 {[%emt 0:00:50]} Nc6 {[%emt 0:01:02]} 21. Qf2 {[%emt 0:01:22]} Nd7 {[%emt 0:02:32] Inhibits Bb6.} 22. Kh2 {[%emt 0:04:06]} Bc8 {[%emt 0:06:05]} 23. Bf1 {[%emt 0:01:00]} Nb6 {[%emt 0:01:39]} 24. Raa1 {[%emt 0:00:14]} Nb4 {[%emt 0:00:42]} 25. Na5 {[%emt 0:00:27]} Rd8 {[%emt 0:04:05]} ({Better is} 25... Nc6 $11) 26. Rd2 $14 {[%emt 0:02:20]} Be7 {[%emt 0:03:16]} 27. Rad1 {[%emt 0:07:47]} h6 {[%emt 0:04:51]} 28. Ra1 {[%emt 0:00:21]} d5 {[%emt 0:01:00]} 29. e5 {[%emt 0:00:38]} Nc4 {[%emt 0:02:56]} (29... Nc6 $11) 30. Nxc4 $16 {[%emt 0:00:37]} dxc4 {[%emt 0:00:04]} 31. Rxd8+ {[%emt 0:00:15]} Bxd8 {[%emt 0:00:14]} 32. Bc5 {[%emt 0:01:11] And now Bd6 would win.} Qc6 {[%emt 0:02:38]} (32... Nxc2 $2 33. Bd6 Qb6 34. Qxc2 $18) (32... Nd5 $16) 33. Bg2 $1 $18 {[%emt 0:01:57]} ({Don't play} 33. Bxc4 $6 Bb7 $16) 33... Qe8 {[%emt 0:00:34]} (33... Nd5 {keeps fighting.} 34. Nxd5 exd5) 34. Ba7 {[%emt 0:03:15]} Rb7 {[%emt 0:00:03]} 35. Bxb7 {[%emt 0:00:15]} Bxb7 {[%emt 0:00:06]} 36. Bc5 {[%emt 0:00:16]} a5 {[%emt 0:02:01]} 37. Rd1 {[%emt 0:01:33]} Bc7 $2 {[%emt 0:00:51]} (37... Nd5 {was worth a try.} 38. Ne4 Bc7) 38. Bb6 {[%emt 0:00:17]} Qc6 {[%emt 0:01:13]} 39. Bxc7 {[%emt 0:00:05]} Qxc7 {[%emt 0:00:02]} 40. Nb5 {[%emt 0:00:56][%cal Bc3b5,Bb5d6,Bd6c4,Bc4a5,Ba5b3,Bb3c5][%mdl 32]} Qc6 {[%emt 0:00:38]} 41. Nd6 {[%emt 0:04:24]} Ba8 {[%emt 0:01:24]} 42. Nxc4 {[%emt 0:01:32]} Qe4 $2 {[%emt 0:00:08]} (42... Qxc4 43. Rd8+ Kh7) 43. Nxa5 {[%emt 0:12:20]} Kh7 {[%emt 0:10:10]} 44. Re1 {[%emt 0:01:02]} Qd5 {[%emt 0:00:45]} 45. Nb3 {[%emt 0:00:26]} g6 {[%emt 0:01:05]} (45... Nd3 $142 46. cxd3 Qxb3) 46. Nc5 {[%emt 0:00:59]} Kg7 {[%emt 0:07:25]} 47. c3 {[%emt 0:04:07]} Nc6 {[%emt 0:00:09]} 48. Ne4 {[%emt 0:00:15]} Ne7 {[%emt 0:00:43]} 49. Qd2 {[%emt 0:04:46] Inhibits Qd3.} Qc6 {[%emt 0:01:58]} 50. Qd8 {[%emt 0:03:01]} Qb7 {[%emt 0:14:26]} 51. b4 {[%emt 0:00:54]} Qa7 {[%emt 0:00:00]} 52. Qa5 {[%emt 0:00:26]} Qb7 {[%emt 0:00:00]} 53. Ra1 $2 {[%emt 0:02:37]} Qxe4 $16 {[%emt 0:00:00][%csl Ga8][%cal Re4g2]} 54. Qxa8 {[%emt 0:00:03][%mdl 4096] Endgame KQR-KQN} Nd5 {[%emt 0:00:00] [#]} (54... Qc2+ $16 55. Qg2 Qxc3) 55. Qa2 $1 $18 {[%emt 0:00:33] Strongly threatening Qd2.} Nxc3 {[%emt 0:00:00]} 56. Qd2 {[%emt 0:01:41]} Nd5 {[%emt 0:00:00]} 57. b5 {[%emt 0:00:34]} h5 {[%emt 0:00:00]} 58. h4 {[%emt 0:00:34]} (58. Rf1 $18) 58... Ne3 $16 {[%emt 0:00:00] [#]} 59. b6 {[%emt 0:00:45]} (59. Kg1 $1 $16 {Threatens to win with Re1.} Ng4 60. Rf1) 59... Qf3 $11 {[%emt 0:00:00] The position is equal.} 60. Rg1 {[%emt 0:01:04]} Ng4+ {[%emt 0:00:00]} 61. Kh3 {[%emt 0:00:03]} Nf2+ {[%emt 0:00:00]} 62. Kh2 {[%emt 0:00:01]} Ng4+ {[%emt 0:00:00]} 63. Kh3 {[%emt 0:00:01]} Nf2+ {[%emt 0:00:00] Weighted Error Value: White=0.10 (very precise) /Black=0.36} 1/2-1/2

[Event "24th Hoogeschool Zeeland 2022"]
[Site "Vlissingen"]
[Date "2022.08.09"]
[Round "5.15"]
[White "Van der Hagen, Loek"]
[Black "Ollenberger, Roland"]
[Result "0-1"]
[ECO "E24"]
[WhiteElo "2135"]
[BlackElo "2264"]
[Annotator "TA"]
[PlyCount "86"]
[EventDate "2022.08.05"]
[EventType "swiss"]
[EventCountry "NED"]
[SourceTitle "playchess.com"]
[Source "ChessBase"]
[SourceQuality "1"]
[TimeControl "40/5400+30:1800+30"]

{[%evp 11,86,-12,0,0,58,44,60,58,81,90,129,92,112,95,127,108,112,-21,174,192,223,134,162,124,112,-4,-4,-4,-4,-4,-4,-4,-7,-10,0,-59,-59,-73,-67,-53,-51,-82,-90,-182,-162,-183,-132,-227,-191,-287,-286,-334,-344,-480,-263,-313,-307,-278,-290,-272,-251,-452,-455,-440,-411,-500,-474,-750,-759,-829,-806,-29972,-29975,-6325,-6087,-29985,-29984]} 1. d4 {[%emt 0:00:10]} Nf6 {[%emt 0:00:23]} 2. c4 {[%emt 0:00:05]} e6 {[%emt 0:00:18]} 3. Nc3 {[%emt 0:00:07]} Bb4 {[%emt 0:00:27]} 4. a3 {[%emt 0:00:04]} Bxc3+ {[%emt 0:03:07]} 5. bxc3 {[%emt 0:00:07]} b6 {[%emt 0:01:12]} 6. f3 {[%emt 0:00:05]} d6 {[%emt 0:00:57]} 7. e4 {[%emt 0:00:16] E24: Nimzo-Indian: Sämisch: Unusual Black 5th moves and 5...c5 sidelines.} Nbd7 {[%emt 0:00:48]} (7... Nc6 $11) 8. Bd3 $14 {[%emt 0:01:12]} c5 {[%emt 0:05:41]} 9. Ne2 {[%emt 0:01:46] [#] White is slightly better.} Qe7 $146 {[%emt 0:02:27]} ({Predecessor:} 9... Ba6 10. O-O cxd4 11. cxd4 Qc7 12. Qa4 Bb7 13. Ng3 h5 14. Re1 h4 15. Nh1 e5 {0-1 (70) Balaji,A (2206)-Jakubowski,K (2497) Chess.com INT 2021}) 10. O-O {[%emt 0:02:21]} h6 {[%emt 0:05:13]} 11. f4 {[%emt 0:01:12] Hoping for e5.} Bb7 {[%emt 0:06:25]} 12. Ng3 {[%emt 0:06:24] Threatens to win with e5.} O-O-O {[%emt 0:10:33]} 13. a4 {[%emt 0:05:14]} h5 {[%emt 0:06:18]} 14. e5 {[%emt 0:11:47]} ({White should play} 14. Qe2 $16) 14... Ne8 $2 {[%emt 0:19:19]} (14... dxe5 $11 15. fxe5 Ng4) 15. Qe2 $1 $18 {[%emt 0:12:59]} f6 {[%emt 0:04:04]} 16. exd6 {[%emt 0:05:44]} ({Worse is} 16. Nxh5 cxd4 17. exf6 (17. cxd4 fxe5 18. dxe5 dxe5 $11) 17... Qf7 18. fxg7 Nxg7 $11) 16... Nxd6 {[%emt 0:00:19]} 17. d5 {[%emt 0:02:30]} Rde8 {[%emt 0:03:45] [#]} 18. Bg6 {[%emt 0:01:49]} (18. Re1 $1 $16) 18... exd5 $11 {[%emt 0:01:32]} 19. Bxe8 {[%emt 0:01:43]} Qxe8 {[%emt 0:00:46]} 20. Qxe8+ {[%emt 0:03:55]} Rxe8 {[%emt 0:00:19]} 21. Nxh5 {[%emt 0:01:59]} g6 $36 {[%emt 0:00:21][%mdl 2048] Black fights for an advantage.} 22. Ng3 {[%emt 0:00:22]} Nxc4 {[%emt 0:00:18]} 23. f5 {[%emt 0:03:27]} (23. Kf2 $11) 23... g5 $15 {[%emt 0:00:32][%mdl 1024] Black has compensation.} 24. Ra2 {[%emt 0:02:14]} Ba6 {[%emt 0:02:30]} 25. Rd1 {[%emt 0:02:39]} Nd6 {[%emt 0:02:45]} 26. Kf2 {[%emt 0:15:11]} Bc4 {[%emt 0:00:36] Black is more active.} 27. Rad2 {[%emt 0:01:30]} (27. Ra1 $17) 27... Kc7 {[%emt 0:02:46]} 28. h3 {[%emt 0:06:48]} Kc6 {[%emt 0:00:42]} (28... Ne5 $19 29. Ba3 Kc6) 29. Re1 {[%emt 0:01:57]} (29. Rb2 $17 {keeps fighting.}) 29... Ne5 {[%emt 0:00:21]} 30. Nh5 {[%emt 0:06:01] [#]} (30. Re3 {was worth a try.}) 30... Ne4+ $1 $19 {[%emt 0:01:47]} ({Weaker is} 30... Nxf5 31. Nxf6 Re6 32. Ng4 Nxg4+ 33. hxg4 Rxe1 34. Kxe1 $11) 31. Rxe4 {[%emt 0:00:45]} dxe4 {[%emt 0:00:05]} 32. Nxf6 {[%emt 0:02:55]} Rf8 {[%emt 0:00:30]} (32... e3+ $142 33. Kxe3 Ng4+ 34. Kf3 Nxf6) 33. Nxe4 {[%emt 0:01:04]} Nd3+ {[%emt 0:00:27]} ({Stronger than} 33... Rxf5+ 34. Kg3 $17) 34. Rxd3 {[%emt 0:00:25]} Bxd3 {[%emt 0:00:10]} 35. Nxg5 {[%emt 0:00:11]} Rxf5+ {[%emt 0:01:54][%mdl 4096] Endgame KRB-KBN} 36. Kg3 $2 {[%emt 0:00:16]} (36. Nf3 {was the only defense.}) 36... Bc2 {[%emt 0:02:59]} 37. h4 {[%emt 0:00:23]} Bxa4 {[%emt 0:00:49]} 38. h5 {[%emt 0:00:17]} Bc2 {[%emt 0:00:23]} 39. Bf4 {[%emt 0:01:13]} (39. c4 $142) 39... a5 {[%emt 0:01:54][%cal Ba7a5,Ba5a4,Ba4a3][%mdl 32]} 40. h6 {[%emt 0:00:25]} a4 {[%emt 0:01:12]} 41. c4 {[%emt 0:03:07] [#]} Rxf4 $1 {[%emt 0:03:04][%mdl 512]} 42. Kxf4 {[%emt 0:00:23]} a3 {[%emt 0:01:51] ( -> ...a2)} 43. Ne4 {[%emt 0:02:56]} Bxe4 {[%emt 0:00:19] Black used his chance.  Weighted Error Value: White=0.82/Black=0.28 (precise)} 0-1

[Event "24th Hoogeschool Zeeland 2022"]
[Site "Vlissingen"]
[Date "2022.08.09"]
[Round "5.16"]
[White "Zwirs, Jasper"]
[Black "Laux, Dominik"]
[Result "1/2-1/2"]
[ECO "B90"]
[WhiteElo "2105"]
[BlackElo "2320"]
[Annotator "TA"]
[PlyCount "37"]
[EventDate "2022.08.05"]
[EventType "swiss"]
[EventCountry "NED"]
[SourceTitle "playchess.com"]
[Source "ChessBase"]
[SourceQuality "1"]
[TimeControl "40/5400+30:1800+30"]

{[%evp 15,37,8,2,2,23,16,22,6,47,51,31,28,34,14,37,34,24,7,47,27,27,8,39,0]} 1. e4 {[%emt 0:00:04]} c5 {[%emt 0:03:52]} 2. Nf3 {[%emt 0:00:08][%cal Bg1f3,Bf3d4,Bd4e2,Be2g3][%mdl 32]} d6 {[%emt 0:00:06]} 3. d4 {[%emt 0:00:04]} cxd4 {[%emt 0:00:04]} 4. Nxd4 {[%emt 0:00:06]} Nf6 {[%emt 0:00:04]} 5. Nc3 {[%emt 0:00:05]} a6 {[%emt 0:00:39]} 6. Bd3 {[%emt 0:00:08]} e5 {[%emt 0:03:11]} 7. Nde2 {[%emt 0:00:14]} Be7 {[%emt 0:01:20]} 8. O-O {[%emt 0:00:19]} O-O {[%emt 0:03:06]} 9. Ng3 {[%emt 0:00:05] B90: Sicilian Najdorf: Unusual White 6th moves, 6 Be3 Ng4 and 6 Be3 e5.} Be6 {[%emt 0:07:08]} 10. Nd5 {[%emt 0:01:24]} Nxd5 {[%emt 0:15:52]} 11. exd5 {[%emt 0:00:09] The position is equal.} Bxd5 {[%emt 0:06:25] [#]} 12. Bxh7+ $1 {[%emt 0:00:07]} Kxh7 {[%emt 0:00:04]} 13. Qxd5 {[%emt 0:00:05]} Nc6 {[%emt 0:02:26]} 14. f4 {[%emt 1:34:32]} f5 {[%emt 0:12:01]} 15. Be3 {[%emt 0:00:00] Inhibits Qb6.} g6 {[%emt 0:04:39]} 16. Rad1 {[%emt 0:00:00] [#]} Qc7 $146 {[%emt 0:07:41]} (16... Qa5 $5 {[%cal Ra5d5]}) ({Predecessor:} 16... Qe8 17. Ne2 Qf7 18. Nc3 Qxd5 19. Nxd5 Bd8 20. c3 b5 21. Rd3 e4 22. Rd2 Ne7 {1-0 (51) Morozevich,A (2659)-Sirosh,I (2402) Puhajarve 2021}) 17. c3 {[%emt 0:00:00]} Rac8 {[%emt 0:04:25]} 18. Kh1 {[%emt 0:00:00]} b5 {[%emt 0:08:55]} 19. Qf3 {[%emt 0:00:00] Weighted Error Value: White=0.10 (very precise) /Black=0.15 (very precise)} 1/2-1/2

[Event "24th Hoogeschool Zeeland 2022"]
[Site "Vlissingen"]
[Date "2022.08.09"]
[Round "5.17"]
[White "Stillger, Bernhard"]
[Black "Gijsen, William"]
[Result "1-0"]
[ECO "D10"]
[WhiteElo "2245"]
[BlackElo "2079"]
[Annotator "RC"]
[PlyCount "101"]
[EventDate "2022.08.05"]
[EventType "swiss"]
[EventCountry "NED"]
[SourceTitle "playchess.com"]
[Source "ChessBase"]
[SourceQuality "1"]
[TimeControl "40/5400+30:1800+30"]

1. d4 {[%emt 0:00:03]} d5 {[%emt 0:00:04]} 2. c4 {[%emt 0:00:04]} c6 {[%emt 0:00:04]} 3. cxd5 {[%emt 0:00:15]} cxd5 {[%emt 0:00:06]} 4. Bf4 {[%emt 0:00:06]} Nc6 {[%emt 0:00:54]} 5. e3 {[%emt 0:00:17]} Nf6 {[%emt 0:00:06]} 6. Nc3 {[%emt 0:00:07]} a6 {[%emt 0:00:05]} 7. Be2 {[%emt 0:00:14]} Qb6 {[%emt 0:01:27]} 8. a3 {[%emt 0:03:37]} e6 {[%emt 0:01:10]} 9. h3 {[%emt 0:05:31]} Bd7 {[%emt 0:00:22]} 10. Nf3 {[%emt 0:03:28]} Rc8 {[%emt 0:04:23]} 11. O-O {[%emt 0:03:06]} Qd8 {[%emt 0:08:57]} 12. Bd3 {[%emt 0:04:55]} Be7 {[%emt 0:00:23]} 13. Na4 {[%emt 0:01:04]} O-O {[%emt 0:02:25]} 14. b4 {[%emt 0:04:46]} Re8 {[%emt 0:07:50]} 15. Nc5 {[%emt 0:05:32]} Bxc5 {[%emt 0:00:39]} 16. bxc5 {[%emt 0:00:38]} b5 {[%emt 0:00:57]} 17. Qb1 {[%emt 0:11:14]} Na5 {[%emt 0:01:45]} 18. Ne5 {[%emt 0:06:07]} Nc4 {[%emt 0:03:02]} 19. Qc2 {[%emt 0:01:13]} h6 {[%emt 0:08:54]} 20. a4 {[%emt 0:03:25]} Nxe5 {[%emt 0:06:15]} 21. Bxe5 {[%emt 0:00:24]} bxa4 {[%emt 0:00:07]} 22. Bxa6 {[%emt 0:00:40]} Ne4 {[%emt 0:05:22]} 23. f3 {[%emt 0:02:57]} f6 {[%emt 0:00:40]} 24. Bh2 {[%emt 0:12:33]} Ng5 {[%emt 0:02:00]} 25. Bxc8 {[%emt 0:08:55]} Qxc8 {[%emt 0:00:02]} 26. c6 {[%emt 0:01:25]} Qxc6 {[%emt 0:00:38]} 27. Qxc6 {[%emt 0:00:05]} Bxc6 {[%emt 0:00:09]} 28. Rfc1 {[%emt 0:00:04]} Bb5 {[%emt 0:02:46]} 29. Rc5 {[%emt 0:02:50]} Bd7 {[%emt 0:00:24]} 30. Rc7 {[%emt 0:00:58]} Rd8 {[%emt 0:00:25]} 31. Ra7 {[%emt 0:02:46]} Nf7 {[%emt 0:01:01]} 32. Rc1 {[%emt 0:00:55]} e5 {[%emt 0:02:45]} 33. Rcc7 {[%emt 0:00:49]} Be8 {[%emt 0:02:07]} 34. Re7 {[%emt 0:01:24]} exd4 {[%emt 0:02:29]} 35. exd4 {[%emt 0:00:05]} Kf8 {[%emt 0:00:15]} 36. h4 {[%emt 0:02:05]} Kg8 {[%emt 0:00:57]} 37. Rec7 {[%emt 0:00:16]} Kf8 {[%emt 0:00:17]} 38. Kf2 {[%emt 0:00:38]} Kg8 {[%emt 0:00:20]} 39. g4 {[%emt 0:01:42]} Kf8 {[%emt 0:00:07]} 40. Rc5 {[%emt 0:01:18]} h5 {[%emt 0:02:08]} 41. Bf4 {[%emt 0:32:27]} hxg4 {[%emt 0:30:46]} 42. fxg4 {[%emt 0:00:21]} Nd6 {[%emt 0:00:28]} 43. Bxd6+ {[%emt 0:02:08]} Rxd6 {[%emt 0:00:02]} 44. Rcc7 {[%emt 0:00:47]} g6 {[%emt 0:02:36]} 45. Rh7 {[%emt 0:04:16]} Kg8 {[%emt 0:00:08]} 46. h5 {[%emt 0:00:29]} gxh5 {[%emt 0:05:19]} 47. gxh5 {[%emt 0:00:03]} f5 {[%emt 0:03:23]} 48. h6 {[%emt 0:00:45]} Rg6 {[%emt 0:00:04]} 49. Rhe7 {[%emt 0:00:23]} Kf8 {[%emt 0:00:17]} 50. h7 {[%emt 0:00:11]} Rh6 {[%emt 0:00:13]} 51. Rg7 {[%emt 0:01:34]} 1-0